[Event "Late-Titled-Tuesday-Blitz-November-28-2023"]
[Site "Chess.com"]
[Date "2023.11.28"]
[Round "1"]
[White "miraitrunks"]
[Black "ThePeacefulPanda"]
[Result "0-1"]
[WhiteElo "2033"]
[BlackElo "2523"]
[TimeControl "180+1"]
[EndTime "14:05:20 PST"]
[Termination "ThePeacefulPanda won on time"]

1. e4 {[%clk 0:02:59.8]} 1... e5 {[%clk 0:02:59.9]} 2. Nf3 {[%clk 0:02:59.8]}
2... Nc6 {[%clk 0:02:58.5]} 3. Bb5 {[%clk 0:02:58.6]} 3... Nf6 {[%clk
0:02:50.9]} 4. O-O {[%clk 0:02:57.8]} 4... Nxe4 {[%clk 0:02:48.1]} 5. d4 {[%clk
0:02:39.7]} 5... Nd6 {[%clk 0:02:48.1]} 6. dxe5 {[%clk 0:02:32.2]} 6... Nxb5
{[%clk 0:02:48]} 7. a4 {[%clk 0:02:32.2]} 7... d6 {[%clk 0:02:47.8]} 8. axb5
{[%clk 0:02:25.9]} 8... Nxe5 {[%clk 0:02:47.5]} 9. Re1 {[%clk 0:01:53.9]} 9...
Be7 {[%clk 0:02:32.7]} 10. Nxe5 {[%clk 0:01:41.9]} 10... dxe5 {[%clk 0:02:33.6]}
11. Qxd8+ {[%clk 0:01:42]} 11... Bxd8 {[%clk 0:02:31.9]} 12. Rxe5+ {[%clk
0:01:41.9]} 12... Be6 {[%clk 0:02:32.6]} 13. Nc3 {[%clk 0:01:33.1]} 13... Bf6
{[%clk 0:02:32.1]} 14. Re2 {[%clk 0:01:31]} 14... Bxc3 {[%clk 0:02:29.4]} 15.
bxc3 {[%clk 0:01:31]} 15... O-O {[%clk 0:02:22.4]} 16. Ra4 {[%clk 0:01:25]}
16... Bd7 {[%clk 0:02:15.6]} 17. Rb4 {[%clk 0:01:17.6]} 17... c5 {[%clk
0:02:14.2]} 18. bxc6 {[%clk 0:00:55.9]} 18... Bxc6 {[%clk 0:02:13.9]} 19. Be3
{[%clk 0:00:55.4]} 19... a5 {[%clk 0:02:13.8]} 20. Rb1 {[%clk 0:00:51.4]} 20...
Rfe8 {[%clk 0:02:14.3]} 21. h3 {[%clk 0:00:49.2]} 21... a4 {[%clk 0:02:14.6]}
22. Rd2 {[%clk 0:00:45.3]} 22... Rad8 {[%clk 0:02:12.6]} 23. Rd4 {[%clk
0:00:36]} 23... f6 {[%clk 0:02:10]} 24. Rbd1 {[%clk 0:00:27.4]} 24... Ra8 {[%clk
0:02:09.1]} 25. Ra1 {[%clk 0:00:16.4]} 25... Kf7 {[%clk 0:02:08]} 26. Rb4 {[%clk
0:00:14.7]} 26... g5 {[%clk 0:02:06.7]} 27. c4 {[%clk 0:00:14.6]} 27... h5
{[%clk 0:02:06.9]} 28. Ra2 {[%clk 0:00:06.4]} 28... h4 {[%clk 0:02:07.3]} 29.
Bb6 {[%clk 0:00:04.3]} 29... Re4 {[%clk 0:02:07.2]} 30. Bc5 {[%clk 0:00:03]}
30... Rd8 {[%clk 0:02:04.6]} 31. Rbxa4 {[%clk 0:00:01.3]} 31... Rd1+ {[%clk
0:02:04.3]} 32. Kh2 {[%clk 0:00:01.6]} 32... Ree1 {[%clk 0:02:05.1]} 0-1

[Event "Late-Titled-Tuesday-Blitz-November-28-2023"]
[Site "Chess.com"]
[Date "2023.11.28"]
[Round "1"]
[White "ATM622"]
[Black "OparinGrigoriy"]
[Result "0-1"]
[WhiteElo "2480"]
[BlackElo "3004"]
[TimeControl "180+1"]
[EndTime "14:05:22 PST"]
[Termination "OparinGrigoriy won on time"]

1. d4 {[%clk 0:03:00.2]} 1... d5 {[%clk 0:02:42.1]} 2. c4 {[%clk 0:02:59.1]}
2... e6 {[%clk 0:02:42.7]} 3. Nf3 {[%clk 0:02:59]} 3... Nf6 {[%clk 0:02:42.6]}
4. g3 {[%clk 0:02:58.9]} 4... dxc4 {[%clk 0:02:42]} 5. Bg2 {[%clk 0:02:58.8]}
5... a6 {[%clk 0:02:42.8]} 6. O-O {[%clk 0:02:56.9]} 6... Nc6 {[%clk 0:02:43.1]}
7. Nc3 {[%clk 0:02:47.5]} 7... Rb8 {[%clk 0:02:42.1]} 8. a4 {[%clk 0:02:43.7]}
8... b5 {[%clk 0:02:39.3]} 9. axb5 {[%clk 0:02:42.9]} 9... axb5 {[%clk
0:02:40.2]} 10. e4 {[%clk 0:02:41.4]} 10... Be7 {[%clk 0:02:39.1]} 11. d5 {[%clk
0:02:41]} 11... exd5 {[%clk 0:02:38.7]} 12. exd5 {[%clk 0:02:28.8]} 12... Nb4
{[%clk 0:02:38.6]} 13. Ne5 {[%clk 0:02:24.5]} 13... O-O {[%clk 0:02:37.9]} 14.
Be3 {[%clk 0:02:10.8]} 14... Bd6 {[%clk 0:02:32.4]} 15. Nc6 {[%clk 0:01:58.5]}
15... Nxc6 {[%clk 0:02:32.5]} 16. dxc6 {[%clk 0:01:59.1]} 16... b4 {[%clk
0:02:24.4]} 17. Ba7 {[%clk 0:01:39.2]} 17... bxc3 {[%clk 0:02:17]} 18. Bxb8
{[%clk 0:01:11.1]} 18... cxb2 {[%clk 0:02:17.1]} 19. Rb1 {[%clk 0:00:35.5]}
19... c3 {[%clk 0:02:17.2]} 20. Qc2 {[%clk 0:00:22.9]} 20... Ba6 {[%clk
0:01:49.3]} 21. Ba7 {[%clk 0:00:12.4]} 21... Bxf1 {[%clk 0:01:48.8]} 22. Bxf1
{[%clk 0:00:12.3]} 22... Be5 {[%clk 0:01:48.6]} 23. Bc5 {[%clk 0:00:09.3]} 23...
Re8 {[%clk 0:01:48.9]} 24. Rd1 {[%clk 0:00:05.8]} 24... Qa8 {[%clk 0:01:46.8]}
25. Bb5 {[%clk 0:00:01.3]} 25... Qa5 {[%clk 0:01:45.1]} 26. Qb3 {[%clk
0:00:01.6]} 26... c2 {[%clk 0:01:45.4]} 27. Re1 {[%clk 0:00:01.3]} 27... c1=Q
{[%clk 0:01:45]} 0-1

[Event "Late-Titled-Tuesday-Blitz-November-28-2023"]
[Site "Chess.com"]
[Date "2023.11.28"]
[Round "1"]
[White "h4parah5"]
[Black "Jaka_Brilej"]
[Result "1-0"]
[WhiteElo "2931"]
[BlackElo "2470"]
[TimeControl "180+1"]
[EndTime "14:05:26 PST"]
[Termination "h4parah5 won by resignation"]

1. d4 {[%clk 0:03:00.9]} 1... Nf6 {[%clk 0:02:57.1]} 2. Nf3 {[%clk 0:03:00.4]}
2... g6 {[%clk 0:02:57.1]} 3. c4 {[%clk 0:02:59.5]} 3... Bg7 {[%clk 0:02:57.4]}
4. e3 {[%clk 0:02:59.9]} 4... O-O {[%clk 0:02:56.4]} 5. Be2 {[%clk 0:03:00.8]}
5... d6 {[%clk 0:02:56.1]} 6. Nc3 {[%clk 0:02:59.9]} 6... Nbd7 {[%clk
0:02:54.3]} 7. O-O {[%clk 0:02:59.2]} 7... e5 {[%clk 0:02:53.9]} 8. Qc2 {[%clk
0:02:59.8]} 8... Qe7 {[%clk 0:02:47.8]} 9. b4 {[%clk 0:02:58.9]} 9... c6 {[%clk
0:02:37.1]} 10. a4 {[%clk 0:02:56.9]} 10... e4 {[%clk 0:02:32.4]} 11. Nd2 {[%clk
0:02:56.6]} 11... d5 {[%clk 0:02:33]} 12. Ba3 {[%clk 0:02:54.9]} 12... Rd8
{[%clk 0:02:25.4]} 13. b5 {[%clk 0:02:48.4]} 13... Qe6 {[%clk 0:02:25.4]} 14.
Rfc1 {[%clk 0:02:43.4]} 14... Nb6 {[%clk 0:02:22.6]} 15. cxd5 {[%clk 0:02:34.5]}
15... cxd5 {[%clk 0:02:22.8]} 16. a5 {[%clk 0:02:33.8]} 16... Nbd7 {[%clk
0:02:21.7]} 17. Na4 {[%clk 0:02:24.2]} 17... Bf8 {[%clk 0:02:05.5]} 18. Nc5
{[%clk 0:02:23.8]} 18... Qe8 {[%clk 0:02:01.6]} 19. a6 {[%clk 0:02:13.3]} 19...
b6 {[%clk 0:01:58.1]} 20. Nb7 {[%clk 0:02:12.2]} 20... Bxa3 {[%clk 0:01:49.4]}
21. Rxa3 {[%clk 0:02:06.1]} 21... Qe7 {[%clk 0:01:49.8]} 22. Nxd8 {[%clk
0:01:46.9]} 22... Qxa3 {[%clk 0:01:48.7]} 23. Nc6 {[%clk 0:01:47.1]} 23... Nf8
{[%clk 0:01:28.5]} 24. Nb1 {[%clk 0:01:40.7]} 24... Qd6 {[%clk 0:01:26.4]} 25.
Nxa7 {[%clk 0:01:29.5]} 25... Bxa6 {[%clk 0:01:26.1]} 26. bxa6 {[%clk
0:01:29.4]} 26... Rxa7 {[%clk 0:01:26.3]} 27. Nc3 {[%clk 0:01:28.5]} 27... Qb8
{[%clk 0:01:21.7]} 28. Ra1 {[%clk 0:01:26.2]} 28... Qa8 {[%clk 0:01:21.6]} 29.
Qa4 {[%clk 0:01:25.7]} 29... Ne6 {[%clk 0:01:07.3]} 30. Nb5 {[%clk 0:01:25.1]}
30... Re7 {[%clk 0:01:07.9]} 31. a7 {[%clk 0:01:21.3]} 31... Nc7 {[%clk
0:01:07.6]} 32. Qb4 {[%clk 0:01:18.1]} 32... Rd7 {[%clk 0:00:51.4]} 33. Nxc7
{[%clk 0:01:17.1]} 33... Rxc7 {[%clk 0:00:51.7]} 34. Qxb6 {[%clk 0:01:17.1]}
34... Ne8 {[%clk 0:00:52.4]} 35. Qb8 {[%clk 0:01:15.5]} 35... Rc8 {[%clk
0:00:52.5]} 36. Qxc8 {[%clk 0:01:12.4]} 1-0

[Event "Late-Titled-Tuesday-Blitz-November-28-2023"]
[Site "Chess.com"]
[Date "2023.11.28"]
[Round "1"]
[White "grandemestregringo"]
[Black "komogro"]
[Result "1-0"]
[WhiteElo "2640"]
[BlackElo "2335"]
[TimeControl "180+1"]
[EndTime "14:05:33 PST"]
[Termination "grandemestregringo won by resignation"]

1. f4 {[%clk 0:02:59.7]} 1... d5 {[%clk 0:02:57.8]} 2. Nf3 {[%clk 0:02:56.2]}
2... Bg4 {[%clk 0:02:58.1]} 3. e3 {[%clk 0:02:55.9]} 3... Nf6 {[%clk 0:02:56.4]}
4. h3 {[%clk 0:02:53.8]} 4... Bxf3 {[%clk 0:02:56]} 5. Qxf3 {[%clk 0:02:53.6]}
5... Nc6 {[%clk 0:02:56.7]} 6. Bb5 {[%clk 0:02:52.4]} 6... Qd6 {[%clk
0:02:55.5]} 7. O-O {[%clk 0:02:51.7]} 7... a6 {[%clk 0:02:53.9]} 8. Ba4 {[%clk
0:02:48.8]} 8... b5 {[%clk 0:02:50.9]} 9. Bb3 {[%clk 0:02:48.9]} 9... e6 {[%clk
0:02:50.7]} 10. d3 {[%clk 0:02:48.6]} 10... Be7 {[%clk 0:02:49.1]} 11. Nc3
{[%clk 0:02:47.5]} 11... O-O {[%clk 0:02:39.7]} 12. Bd2 {[%clk 0:02:42.9]} 12...
d4 {[%clk 0:02:38]} 13. Ne4 {[%clk 0:02:33.7]} 13... Nxe4 {[%clk 0:02:37.9]} 14.
dxe4 {[%clk 0:02:33.7]} 14... Qc5 {[%clk 0:02:30.8]} 15. Kh1 {[%clk 0:02:27.6]}
15... Rad8 {[%clk 0:02:27.8]} 16. e5 {[%clk 0:02:08.6]} 16... Qb6 {[%clk
0:02:22.3]} 17. Qe4 {[%clk 0:02:02.4]} 17... dxe3 {[%clk 0:02:15.8]} 18. Bxe3
{[%clk 0:02:02.5]} 18... Bc5 {[%clk 0:02:16.2]} 19. Bxc5 {[%clk 0:01:52.7]}
19... Qxc5 {[%clk 0:02:17.1]} 20. c3 {[%clk 0:01:53.4]} 20... Rd2 {[%clk
0:02:14.5]} 21. Rad1 {[%clk 0:01:49.7]} 21... Rfd8 {[%clk 0:02:14.3]} 22. Rxd2
{[%clk 0:01:49.3]} 22... Rxd2 {[%clk 0:02:15.2]} 23. f5 {[%clk 0:01:47.2]} 23...
Nxe5 {[%clk 0:00:46.4]} 24. fxe6 {[%clk 0:01:40.9]} 24... Qc6 {[%clk 0:00:46.5]}
25. e7 {[%clk 0:01:23.6]} 1-0

[Event "Late-Titled-Tuesday-Blitz-November-28-2023"]
[Site "Chess.com"]
[Date "2023.11.28"]
[Round "1"]
[White "DuleMudule"]
[Black "vidavi"]
[Result "1-0"]
[WhiteElo "2858"]
[BlackElo "2440"]
[TimeControl "180+1"]
[EndTime "14:05:36 PST"]
[Termination "DuleMudule won on time"]

1. d4 {[%clk 0:03:00.9]} 1... Nf6 {[%clk 0:02:59.2]} 2. Bg5 {[%clk 0:03:01.3]}
2... Ne4 {[%clk 0:02:58.8]} 3. h4 {[%clk 0:03:01.9]} 3... c5 {[%clk 0:02:58.4]}
4. dxc5 {[%clk 0:03:02.8]} 4... Qa5+ {[%clk 0:02:56.5]} 5. Nd2 {[%clk
0:03:03.2]} 5... Nc6 {[%clk 0:02:44.5]} 6. c3 {[%clk 0:03:02.3]} 6... Nxg5
{[%clk 0:02:31.7]} 7. Nb3 {[%clk 0:03:01.6]} 7... Qc7 {[%clk 0:02:20.3]} 8. hxg5
{[%clk 0:03:02]} 8... g6 {[%clk 0:02:15.6]} 9. Nf3 {[%clk 0:02:56.6]} 9... Bg7
{[%clk 0:02:15.8]} 10. e3 {[%clk 0:02:52.7]} 10... O-O {[%clk 0:02:12.7]} 11.
Qd5 {[%clk 0:02:47.2]} 11... d6 {[%clk 0:01:44.1]} 12. cxd6 {[%clk 0:02:43.2]}
12... exd6 {[%clk 0:01:45]} 13. Rd1 {[%clk 0:02:41.1]} 13... Rd8 {[%clk
0:01:37.9]} 14. Qe4 {[%clk 0:02:34.6]} 14... Ne5 {[%clk 0:00:55.9]} 15. Qh4
{[%clk 0:02:30.3]} 15... Nxf3+ {[%clk 0:00:46]} 16. gxf3 {[%clk 0:02:31.2]}
16... Be6 {[%clk 0:00:27.6]} 17. Qxh7+ {[%clk 0:02:24.1]} 17... Kf8 {[%clk
0:00:27.8]} 18. Bd3 {[%clk 0:02:17.9]} 18... a5 {[%clk 0:00:26.6]} 19. Nd4
{[%clk 0:02:13.5]} 19... Bxa2 {[%clk 0:00:23.1]} 20. Rh4 {[%clk 0:02:00.8]}
20... Be5 {[%clk 0:00:10.7]} 21. Bxg6 {[%clk 0:01:53.7]} 21... Re8 {[%clk
0:00:10.5]} 22. Be4 {[%clk 0:01:46]} 22... d5 {[%clk 0:00:09.9]} 23. Bd3 {[%clk
0:01:41]} 23... Bg7 {[%clk 0:00:03.1]} 24. g6 {[%clk 0:01:36.8]} 24... Qe5
{[%clk 0:00:02.1]} 25. gxf7 {[%clk 0:01:32.3]} 25... Kxf7 {[%clk 0:00:02.5]} 26.
Qg6+ {[%clk 0:01:32]} 1-0

[Event "Late-Titled-Tuesday-Blitz-November-28-2023"]
[Site "Chess.com"]
[Date "2023.11.28"]
[Round "1"]
[White "SouS007"]
[Black "Hirna2005"]
[Result "1-0"]
[WhiteElo "2629"]
[BlackElo "2325"]
[TimeControl "180+1"]
[EndTime "14:05:43 PST"]
[Termination "SouS007 won by resignation"]

1. Nf3 {[%clk 0:03:00.9]} 1... g6 {[%clk 0:02:57.8]} 2. d4 {[%clk 0:02:59]} 2...
Bg7 {[%clk 0:02:57.4]} 3. g3 {[%clk 0:02:59.4]} 3... d6 {[%clk 0:02:57.2]} 4.
Bg2 {[%clk 0:02:59.8]} 4... Nf6 {[%clk 0:02:56.2]} 5. O-O {[%clk 0:02:59.8]}
5... O-O {[%clk 0:02:54.3]} 6. b3 {[%clk 0:03:00]} 6... Bf5 {[%clk 0:02:53.3]}
7. Bb2 {[%clk 0:02:59.5]} 7... Qc8 {[%clk 0:02:53]} 8. Re1 {[%clk 0:02:58]} 8...
Nc6 {[%clk 0:02:51.4]} 9. Nbd2 {[%clk 0:02:57.4]} 9... Ne4 {[%clk 0:02:49.4]}
10. Nh4 {[%clk 0:02:47.5]} 10... Nxd2 {[%clk 0:02:42.9]} 11. Qxd2 {[%clk
0:02:48.4]} 11... Bh3 {[%clk 0:02:40.5]} 12. Bh1 {[%clk 0:02:45.9]} 12... e5
{[%clk 0:02:34.3]} 13. d5 {[%clk 0:02:44.3]} 13... Ne7 {[%clk 0:02:33.9]} 14. c4
{[%clk 0:02:41.8]} 14... f5 {[%clk 0:02:33]} 15. Nf3 {[%clk 0:02:41.4]} 15... f4
{[%clk 0:02:32]} 16. Ng5 {[%clk 0:02:37.6]} 16... fxg3 {[%clk 0:02:26.8]} 17.
fxg3 {[%clk 0:02:33.1]} 17... Bh6 {[%clk 0:02:22.8]} 18. Bc1 {[%clk 0:02:16]}
18... Rf5 {[%clk 0:02:20.2]} 19. Nxh3 {[%clk 0:01:44.2]} 19... Bxd2 {[%clk
0:02:18.1]} 20. Bxd2 {[%clk 0:01:45.1]} 20... Kg7 {[%clk 0:02:03]} 21. e4 {[%clk
0:01:43.2]} 21... Rf1+ {[%clk 0:01:42.1]} 22. Rxf1 {[%clk 0:01:43.4]} 22... Qxh3
{[%clk 0:01:42.1]} 23. Bg5 {[%clk 0:01:42.3]} 23... Re8 {[%clk 0:01:38.2]} 24.
Bf6+ {[%clk 0:01:41.8]} 24... Kg8 {[%clk 0:01:37.9]} 25. Bg2 {[%clk 0:01:41.5]}
25... Qg4 {[%clk 0:01:34.8]} 26. Rf2 {[%clk 0:01:32.7]} 26... Nc8 {[%clk
0:01:25.6]} 27. Raf1 {[%clk 0:01:30.2]} 27... Rf8 {[%clk 0:01:22.1]} 28. Bf3
{[%clk 0:01:15.6]} 28... Qd7 {[%clk 0:01:16.3]} 29. Bg5 {[%clk 0:01:15.5]} 29...
Qg7 {[%clk 0:01:03.1]} 30. Bg4 {[%clk 0:01:14.4]} 30... Rxf2 {[%clk 0:01:01.2]}
31. Rxf2 {[%clk 0:01:15.3]} 31... Nb6 {[%clk 0:00:36]} 32. Be6+ {[%clk
0:01:12.5]} 32... Kh8 {[%clk 0:00:30.1]} 33. Bf6 {[%clk 0:01:12.5]} 33... a5
{[%clk 0:00:27.8]} 34. Bxg7+ {[%clk 0:01:12.5]} 34... Kxg7 {[%clk 0:00:28.3]}
35. Rf7+ {[%clk 0:01:13.4]} 1-0

[Event "Late-Titled-Tuesday-Blitz-November-28-2023"]
[Site "Chess.com"]
[Date "2023.11.28"]
[Round "1"]
[White "Real_taiatai"]
[Black "Harry_Rakkel"]
[Result "1-0"]
[WhiteElo "2382"]
[BlackElo "2678"]
[TimeControl "180+1"]
[EndTime "14:05:45 PST"]
[Termination "Real_taiatai won by resignation"]

1. Nf3 {[%clk 0:02:59.6]} 1... Nf6 {[%clk 0:02:56.9]} 2. g3 {[%clk 0:02:57.2]}
2... d5 {[%clk 0:02:55.8]} 3. Bg2 {[%clk 0:02:54.6]} 3... c6 {[%clk 0:02:55.6]}
4. O-O {[%clk 0:02:55]} 4... Bf5 {[%clk 0:02:54.3]} 5. b3 {[%clk 0:02:54.7]}
5... e6 {[%clk 0:02:53.7]} 6. Bb2 {[%clk 0:02:55.6]} 6... h6 {[%clk 0:02:53.4]}
7. d3 {[%clk 0:02:55.4]} 7... Be7 {[%clk 0:02:53.3]} 8. Nfd2 {[%clk 0:02:53.8]}
8... a5 {[%clk 0:02:50.8]} 9. a3 {[%clk 0:02:52.8]} 9... Bh7 {[%clk 0:02:49]}
10. e4 {[%clk 0:02:50.2]} 10... O-O {[%clk 0:02:48.7]} 11. Nc3 {[%clk
0:02:49.6]} 11... Na6 {[%clk 0:02:41.9]} 12. Qe2 {[%clk 0:02:47.1]} 12... b5
{[%clk 0:02:37.5]} 13. f4 {[%clk 0:02:33.5]} 13... b4 {[%clk 0:02:23.6]} 14.
axb4 {[%clk 0:02:29.4]} 14... Nxb4 {[%clk 0:02:21.3]} 15. Nf3 {[%clk 0:02:28.1]}
15... d4 {[%clk 0:02:07.1]} 16. Nd1 {[%clk 0:02:17.3]} 16... c5 {[%clk 0:02:06]}
17. Ne5 {[%clk 0:02:16.5]} 17... Nd7 {[%clk 0:02:01.4]} 18. Nc4 {[%clk
0:02:16.1]} 18... Qc7 {[%clk 0:01:52.5]} 19. c3 {[%clk 0:02:13.9]} 19... dxc3
{[%clk 0:01:50.3]} 20. Nxc3 {[%clk 0:02:13.4]} 20... Rfb8 {[%clk 0:01:47.6]} 21.
f5 {[%clk 0:01:59.3]} 21... Nc6 {[%clk 0:01:41.3]} 22. fxe6 {[%clk 0:01:59]}
22... fxe6 {[%clk 0:01:40.6]} 23. Qg4 {[%clk 0:01:58.1]} 23... Nd4 {[%clk
0:01:28.9]} 24. Nb5 {[%clk 0:01:08]} 24... Rxb5 {[%clk 0:01:13.1]} 25. Bxd4
{[%clk 0:01:07.5]} 25... cxd4 {[%clk 0:01:12.7]} 26. Qxe6+ {[%clk 0:01:08]}
26... Kh8 {[%clk 0:01:12.9]} 27. Qxe7 {[%clk 0:01:08.3]} 27... Qd8 {[%clk
0:00:53.5]} 28. Qxd8+ {[%clk 0:01:04.7]} 28... Rxd8 {[%clk 0:00:54.4]} 29. Nd6
{[%clk 0:01:05]} 29... Rbb8 {[%clk 0:00:51.9]} 30. Nf7+ {[%clk 0:01:04.7]} 30...
Kg8 {[%clk 0:00:51.4]} 31. Nxd8 {[%clk 0:01:05.6]} 31... Rxd8 {[%clk 0:00:52.1]}
32. Rxa5 {[%clk 0:01:06.3]} 32... Bg6 {[%clk 0:00:51.2]} 33. Rd5 {[%clk
0:01:06.1]} 33... Bf7 {[%clk 0:00:46]} 34. Rxf7 {[%clk 0:01:01.1]} 34... Kxf7
{[%clk 0:00:46.9]} 35. Bh3 {[%clk 0:01:01.6]} 1-0

[Event "Late-Titled-Tuesday-Blitz-November-28-2023"]
[Site "Chess.com"]
[Date "2023.11.28"]
[Round "1"]
[White "JackRodgers"]
[Black "wallowss"]
[Result "1-0"]
[WhiteElo "2567"]
[BlackElo "2225"]
[TimeControl "180+1"]
[EndTime "14:05:57 PST"]
[Termination "JackRodgers won by resignation"]

1. d4 {[%clk 0:03:00.9]} 1... Nf6 {[%clk 0:02:58.1]} 2. Bg5 {[%clk 0:03:00.8]}
2... e6 {[%clk 0:02:58]} 3. e4 {[%clk 0:03:00.8]} 3... c5 {[%clk 0:02:57.8]} 4.
d5 {[%clk 0:02:50]} 4... h6 {[%clk 0:02:55.8]} 5. Bxf6 {[%clk 0:02:49.7]} 5...
Qxf6 {[%clk 0:02:55.6]} 6. Nc3 {[%clk 0:02:49.4]} 6... d6 {[%clk 0:02:52.4]} 7.
Nf3 {[%clk 0:02:48.2]} 7... Bd7 {[%clk 0:02:49.8]} 8. dxe6 {[%clk 0:02:45.9]}
8... fxe6 {[%clk 0:02:50.1]} 9. Bc4 {[%clk 0:02:40.2]} 9... Nc6 {[%clk
0:02:48.6]} 10. O-O {[%clk 0:02:35.8]} 10... Be7 {[%clk 0:02:47.1]} 11. Re1
{[%clk 0:02:32.7]} 11... Nd4 {[%clk 0:02:42.1]} 12. Nxd4 {[%clk 0:02:26.7]}
12... cxd4 {[%clk 0:02:42.5]} 13. Ne2 {[%clk 0:02:26.7]} 13... Rc8 {[%clk
0:02:38]} 14. Bb3 {[%clk 0:02:24.9]} 14... e5 {[%clk 0:02:36.9]} 15. Ng3 {[%clk
0:02:20.7]} 15... Be6 {[%clk 0:02:33.6]} 16. Nh5 {[%clk 0:02:16.7]} 16... Qg6
{[%clk 0:01:29.1]} 17. Bxe6 {[%clk 0:02:15]} 17... Rc7 {[%clk 0:01:23.5]} 18.
Bf5 {[%clk 0:02:13.5]} 18... Qg5 {[%clk 0:01:21.5]} 19. Ng3 {[%clk 0:02:07.5]}
19... g6 {[%clk 0:01:19.3]} 20. Be6 {[%clk 0:02:06.6]} 20... Qf6 {[%clk
0:01:15.3]} 21. Bb3 {[%clk 0:02:04.1]} 21... Rf8 {[%clk 0:01:15.1]} 22. Qd2
{[%clk 0:02:02.4]} 22... h5 {[%clk 0:01:12.6]} 23. h3 {[%clk 0:01:58.9]} 23...
h4 {[%clk 0:01:11.7]} 24. Nf1 {[%clk 0:01:58.1]} 24... g5 {[%clk 0:01:10.5]} 25.
Nh2 {[%clk 0:01:57.8]} 25... d5 {[%clk 0:01:00.2]} 26. Ng4 {[%clk 0:01:55.5]}
26... Qg7 {[%clk 0:00:54.6]} 27. exd5 {[%clk 0:01:55.8]} 27... Bd6 {[%clk
0:00:49.3]} 28. Qxd4 {[%clk 0:01:56]} 28... Kd8 {[%clk 0:00:46.7]} 29. Qxa7
{[%clk 0:01:47.8]} 29... Bc5 {[%clk 0:00:38.4]} 30. Qa8+ {[%clk 0:01:41.5]}
30... Kd7 {[%clk 0:00:32]} 31. Qa4+ {[%clk 0:01:41]} 31... Kd6 {[%clk
0:00:29.3]} 32. Re2 {[%clk 0:01:37.9]} 32... b6 {[%clk 0:00:25.1]} 33. Rf1
{[%clk 0:01:36.6]} 33... Rcf7 {[%clk 0:00:23.5]} 34. Qc6+ {[%clk 0:01:36.1]}
34... Ke7 {[%clk 0:00:22.3]} 35. Rxe5+ {[%clk 0:01:34]} 35... Kd8 {[%clk
0:00:21.5]} 36. d6 {[%clk 0:01:26.6]} 1-0

[Event "Late-Titled-Tuesday-Blitz-November-28-2023"]
[Site "Chess.com"]
[Date "2023.11.28"]
[Round "1"]
[White "Chessbard1972"]
[Black "Ellaijio_B"]
[Result "0-1"]
[WhiteElo "2416"]
[BlackElo "2781"]
[TimeControl "180+1"]
[EndTime "14:06:00 PST"]
[Termination "Ellaijio_B won by resignation"]

1. d4 {[%clk 0:02:55.9]} 1... d5 {[%clk 0:02:56.3]} 2. c4 {[%clk 0:02:53.2]}
2... e6 {[%clk 0:02:56.3]} 3. Nc3 {[%clk 0:02:52.8]} 3... Be7 {[%clk 0:02:56.6]}
4. Nf3 {[%clk 0:02:52.2]} 4... Nf6 {[%clk 0:02:57]} 5. Bg5 {[%clk 0:02:52.1]}
5... O-O {[%clk 0:02:56.4]} 6. e3 {[%clk 0:02:52.1]} 6... h6 {[%clk 0:02:56.1]}
7. Bxf6 {[%clk 0:02:51.8]} 7... Bxf6 {[%clk 0:02:56.1]} 8. Qc2 {[%clk
0:02:52.1]} 8... a6 {[%clk 0:02:53.4]} 9. cxd5 {[%clk 0:02:44.9]} 9... exd5
{[%clk 0:02:54.3]} 10. h4 {[%clk 0:02:44.5]} 10... Be6 {[%clk 0:02:48.4]} 11.
Ne5 {[%clk 0:02:42.2]} 11... Bxe5 {[%clk 0:02:44.6]} 12. dxe5 {[%clk 0:02:41.9]}
12... c5 {[%clk 0:02:43.8]} 13. O-O-O {[%clk 0:02:40.9]} 13... Nc6 {[%clk
0:02:42.9]} 14. Bc4 {[%clk 0:02:33.4]} 14... d4 {[%clk 0:02:23.9]} 15. Bxe6
{[%clk 0:02:31.3]} 15... fxe6 {[%clk 0:02:24.8]} 16. Ne4 {[%clk 0:02:27.2]}
16... Nxe5 {[%clk 0:02:17.1]} 17. Kb1 {[%clk 0:02:19.7]} 17... d3 {[%clk
0:01:59.1]} 18. Qc3 {[%clk 0:02:18.8]} 18... Qd5 {[%clk 0:01:59.5]} 19. Nxc5
{[%clk 0:01:32.7]} 19... Rac8 {[%clk 0:01:58]} 20. b4 {[%clk 0:01:32.7]} 20...
Rxf2 {[%clk 0:01:52.3]} 21. Qb3 {[%clk 0:01:28.9]} 21... Rxg2 {[%clk 0:01:11.4]}
22. Qxd5 {[%clk 0:01:23.4]} 22... exd5 {[%clk 0:01:12.3]} 23. Nxd3 {[%clk
0:01:18.5]} 23... Nc4 {[%clk 0:01:12.5]} 24. Rc1 {[%clk 0:01:09.5]} 24... Re8
{[%clk 0:01:04]} 25. Nf4 {[%clk 0:01:08.3]} 25... Rd2 {[%clk 0:00:56.4]} 26.
Rhd1 {[%clk 0:01:03.1]} 26... Na3+ {[%clk 0:00:50.3]} 27. Ka1 {[%clk 0:01:00.8]}
27... Nc2+ {[%clk 0:00:48.9]} 28. Kb1 {[%clk 0:01:00.5]} 28... Rxd1 {[%clk
0:00:47.9]} 29. Rxd1 {[%clk 0:00:59.9]} 29... Nxe3 {[%clk 0:00:47.5]} 30. Re1
{[%clk 0:00:59.3]} 30... Re4 {[%clk 0:00:46.6]} 31. Nxd5 {[%clk 0:00:55.9]}
31... Nxd5 {[%clk 0:00:46.4]} 32. Rxe4 {[%clk 0:00:55.2]} 32... Nc3+ {[%clk
0:00:47]} 33. Kc2 {[%clk 0:00:55.5]} 33... Nxe4 {[%clk 0:00:47.9]} 34. Kd3
{[%clk 0:00:56.2]} 34... Nf6 {[%clk 0:00:42.8]} 35. Kd4 {[%clk 0:00:55.4]} 35...
g5 {[%clk 0:00:43]} 36. hxg5 {[%clk 0:00:55.7]} 36... hxg5 {[%clk 0:00:43.9]}
37. Ke5 {[%clk 0:00:56.5]} 37... g4 {[%clk 0:00:43.7]} 38. Kf4 {[%clk
0:00:56.2]} 38... Kf7 {[%clk 0:00:43.2]} 0-1